bitfinex/quotes_BTCUSD_20250814
["timestamp","ask_amount","ask_price","bid_price","bid_amount"]
[1755175242627,1e-08,119260.0,119250.0,1.29293173]
[1755175242741,1e-08,119260.0,119250.0,1.31538051]
[1755175242952,1e-08,119260.0,119250.0,1.33614095]
[1755175243421,1e-08,119260.0,119250.0,1.04473895]
[1755175243635,0.4958295,119280.0,119270.0,0.53268676]
[1755175243833,0.4958295,119280.0,119270.0,3.49061001]
[1755175244036,0.4958295,119280.0,119270.0,3.82674423]
[1755175244236,0.4958295,119280.0,119270.0,3.53381923]
[1755175244486,0.77899662,119300.0,119290.0,0.53265864]
[1755175244686,0.77899662,119300.0,119290.0,3.96489446]
[1755175244909,0.29951806,119300.0,119290.0,3.9856549]
[1755175245336,0.29951806,119300.0,119290.0,3.96523613]
[1755175245474,0.2860307,119300.0,119290.0,3.96523613]
[1755175245690,0.75,119320.0,119310.0,0.53263054]
[1755175245895,0.75,119320.0,119310.0,3.82220225]
[1755175246280,0.72659579,119320.0,119310.0,3.82220225]
[1755175246521,0.72659579,119320.0,119310.0,3.80360754]
[1755175246522,0.34917791,119320.0,119310.0,3.80360754]
[1755175246867,0.34917791,119320.0,119310.0,3.82371058]
[1755175247047,0.5,119360.0,119330.0,0.53260244]
[1755175247261,0.5,119360.0,119330.0,2.98985989]
[1755175247479,0.5,119360.0,119330.0,2.63269882]
[1755175247687,0.5,119360.0,119330.0,2.00468089]
[1755175247844,0.5,119360.0,119330.0,1.71161082]
[1755175248605,0.5,119360.0,119330.0,1.73673282]
[1755175248822,0.5,119360.0,119330.0,0.64840945]
[1755175249042,0.14801551,119340.0,119330.0,0.40060845]
[1755175249250,0.14801551,119340.0,119330.0,0.33388325]
[1755175249747,0.14801551,119340.0,119330.0,0.65185205]
[1755175250163,0.14801551,119340.0,119330.0,0.33388325]
[1755175250578,0.14801551,119340.0,119330.0,0.79433789]
[1755175250801,0.02730551,119340.0,119330.0,0.50148569]
[1755175251013,0.02730551,119340.0,119330.0,0.50297259]
[1755175251248,0.02730551,119340.0,119330.0,0.33533015]
[1755175251472,0.14801551,119340.0,119330.0,0.08272325]
[1755175251666,0.14801551,119340.0,119330.0,0.33384325]
[1755175251864,0.025,119330.0,119290.0,0.201]
[1755175252088,0.12376,119320.0,119300.0,0.33384325]
[1755175252305,0.14876,119310.0,119300.0,0.08272325]
[1755175252505,0.14876,119310.0,119300.0,0.33384325]
[1755175252707,0.14876,119310.0,119300.0,0.25112]
[1755175253030,0.12376,119310.0,119300.0,0.33384325]
[1755175253232,0.14876,119310.0,119300.0,0.33384325]
[1755175253483,0.12376,119310.0,119300.0,0.33384325]
[1755175253890,0.12071,119310.0,119300.0,0.33384325]
[1755175254098,0.00305,119330.0,119300.0,0.40130825]
[1755175254297,0.12071,119320.0,119310.0,0.08272325]
[1755175254497,0.12071,119320.0,119310.0,0.37567045]
[1755175254776,0.02425551,119340.0,119310.0,0.37567045]
[1755175254777,0.02425551,119340.0,119330.0,0.16760244]
[1755175255050,0.02425551,119340.0,119330.0,0.37561415]
[1755175255190,0.02425551,119340.0,119330.0,0.90664438]
[1755175255396,0.02425551,119340.0,119330.0,0.08272325]
[1755175255757,0.02425551,119340.0,119330.0,0.25032569]
[1755175255955,0.02425551,119340.0,119330.0,0.27545269]
[1755175256179,0.02425551,119340.0,119330.0,0.56830069]
[1755175256382,0.02425551,119340.0,119330.0,0.40069825]
[1755175256565,0.02425551,119340.0,119330.0,0.56830069]
[1755175256714,0.02425551,119340.0,119330.0,0.27690129]
[1755175256921,0.02425551,119340.0,119330.0,0.36041885]
[1755175257119,0.02425551,119340.0,119330.0,0.35897025]
[1755175257401,0.02425551,119340.0,119330.0,0.33384325]
[1755175257763,0.14695551,119340.0,119330.0,0.33384325]
[1755175257987,0.14695551,119340.0,119330.0,0.08272325]
[1755175258197,0.14695551,119340.0,119330.0,0.33384325]
[1755175259195,0.14496551,119340.0,119330.0,0.33384325]
[1755175260058,0.17195551,119340.0,119330.0,0.08272325]
[1755175260233,0.17195551,119340.0,119330.0,0.25112]
[1755175260234,0.04925551,119340.0,119330.0,0.25112]
[1755175260440,0.02425551,119340.0,119330.0,0.25112]
[1755175260829,0.02425551,119340.0,119290.0,0.4971296]
[1755175260830,0.05124551,119340.0,119290.0,0.4971296]
[1755175261029,0.17195551,119340.0,119300.0,0.25112]
[1755175261247,0.1227,119330.0,119300.0,0.025133]
[1755175261451,0.12071,119330.0,119310.0,0.25112]
[1755175261920,0.1227,119330.0,119320.0,0.25112]
[1755175262538,0.12071,119330.0,119320.0,0.25112]
[1755175262753,0.02425551,119340.0,119320.0,0.25112]
[1755175262957,0.04925551,119340.0,119330.0,0.25112]
[1755175263441,0.025,119330.0,119290.0,0.5190889]
[1755175263764,0.29031747,119320.0,119290.0,0.226136]
[1755175263971,0.1477,119310.0,119300.0,0.25112]
[1755175264171,0.12071,119310.0,119300.0,0.25112]
[1755175264495,0.12071,119310.0,119290.0,0.201]
[1755175264699,0.12071,119310.0,119300.0,0.33384325]
[1755175264933,0.1227,119310.0,119300.0,0.33384325]
[1755175265130,0.12071,119310.0,119300.0,0.33384325]
[1755175265328,0.00199,119330.0,119300.0,0.33384325]
[1755175265554,0.04925551,119340.0,119300.0,0.40130825]
[1755175265757,0.04925551,119340.0,119300.0,0.40288495]
[1755175266072,0.17195551,119340.0,119300.0,0.40288495]
[1755175266273,0.1477,119330.0,119300.0,0.33384325]
[1755175266960,0.32368679,119330.0,119300.0,0.33384325]
[1755175267162,0.025,119320.0,119300.0,0.33384325]
[1755175267367,0.025,119310.0,119290.0,0.201]
[1755175267512,0.025,119310.0,119300.0,0.33384325]
[1755175268019,0.025,119330.0,119300.0,0.33384325]
[1755175268232,0.025,119330.0,119310.0,0.08272325]
[1755175268670,0.16962551,119340.0,119310.0,0.08272325]
[1755175268859,0.02425551,119340.0,119320.0,0.33699325]
[1755175269963,0.02425551,119340.0,119320.0,0.62989625]
[1755175270158,0.02425551,119340.0,119320.0,0.33384325]
[1755175270365,0.04925551,119340.0,119320.0,0.33384325]
[1755175271488,0.04925551,119340.0,119330.0,0.00104083]
[1755175271694,0.04925551,119340.0,119330.0,0.08376408]
[1755175271966,0.02425551,119340.0,119330.0,0.08376408]
[1755175272452,1.525,119360.0,119330.0,0.08587325]
[1755175272453,1.34925551,119360.0,119330.0,0.08587325]
[1755175272696,1.34925551,119360.0,119340.0,0.08272325]
[1755175272848,1.34925551,119360.0,119350.0,0.25112]
[1755175273052,1.34925551,119360.0,119350.0,0.33384325]
[1755175273260,1.34925551,119360.0,119350.0,0.25112]
[1755175273425,1.47161551,119360.0,119350.0,0.25112]
[1755175273626,1.63917583,119360.0,119350.0,0.25112]
[1755175274324,1.63791913,119360.0,119350.0,0.25112]
[1755175275070,1.72064238,119360.0,119350.0,0.25112]
[1755175275264,1.72064238,119360.0,119300.0,0.7504784]
[1755175275265,0.025,119320.0,119300.0,0.117565]
[1755175275633,0.025,119320.0,119310.0,0.33384325]
[1755175276212,0.025,119320.0,119300.0,0.117565]
[1755175276213,0.19261649,119320.0,119300.0,0.117565]
[1755175276440,0.02761922,119310.0,119300.0,0.117565]
[1755175276556,0.02761922,119310.0,119300.0,0.30122]
[1755175276761,0.025,119310.0,119300.0,0.38394325]
[1755175277162,0.025,119320.0,119300.0,0.38394325]
[1755175277431,0.00261878,119330.0,119300.0,0.38394325]
[1755175277432,1.62129714,119360.0,119310.0,0.15122995]
[1755175277602,0.025,119340.0,119320.0,0.25112]
[1755175277806,0.025,119340.0,119330.0,0.00104083]
[1755175278008,0.025,119340.0,119320.0,0.33699325]
[1755175278345,0.025,119350.0,119330.0,0.08376408]
[1755175278591,0.025,119350.0,119330.0,0.08272325]
[1755175278767,0.025,119350.0,119340.0,0.25220039]
[1755175278927,0.025,119350.0,119340.0,0.33388325]
[1755175279127,1.34799881,119360.0,119340.0,0.67703325]
[1755175279321,1.34799881,119360.0,119350.0,0.08272325]
[1755175279940,0.025,119350.0,119340.0,0.25116]
[1755175280169,0.025,119350.0,119340.0,0.33388325]
[1755175280366,0.025,119350.0,119340.0,0.08272325]
[1755175280697,0.365,119350.0,119340.0,0.25116]
[1755175280902,0.04025383,119350.0,119340.0,0.25116]
[1755175281089,0.38287217,119350.0,119340.0,0.25116]
[1755175281272,0.0008,119330.0,119310.0,0.00315]
[1755175281467,0.0008,119330.0,119320.0,0.33384325]
[1755175281838,1.34799881,119360.0,119320.0,0.33384325]
[1755175281839,0.025,119350.0,119330.0,0.0493]
[1755175282046,1.32299881,119360.0,119340.0,0.33699325]
[1755175282251,1.32299881,119360.0,119350.0,0.00418995]
[1755175282425,1.32299881,119360.0,119350.0,0.0869132]
[1755175282636,1.32299881,119360.0,119350.0,0.08587325]
[1755175283900,1.3382602,119360.0,119350.0,0.08587325]
[1755175284111,1.3382602,119360.0,119350.0,0.33699325]
[1755175284528,1.3382602,119360.0,119350.0,0.08272325]
[1755175284749,0.025,119350.0,119330.0,0.0493]
[1755175284973,0.04026139,119350.0,119340.0,0.33384325]
[1755175285798,0.04026107,119350.0,119340.0,0.33384325]
[1755175286424,0.54026107,119350.0,119340.0,0.33384325]
[1755175286629,0.025,119340.0,119330.0,0.0493]
[1755175286844,0.21046803,119340.0,119330.0,0.13202325]
[1755175287050,0.04026107,119340.0,119330.0,0.38314325]
[1755175288351,0.01526107,119340.0,119330.0,0.38314325]
[1755175288581,0.01526107,119340.0,119330.0,0.38629325]
[1755175288824,0.01526107,119340.0,119330.0,0.72629325]
[1755175289058,0.01526107,119340.0,119330.0,1.31702035]
[1755175289523,0.5,119350.0,119340.0,0.1675884]
[1755175289725,0.5,119350.0,119340.0,0.84513535]
[1755175289953,0.49675,119350.0,119340.0,0.88193099]
[1755175290173,0.49675,119350.0,119340.0,1.72048036]
[1755175290390,0.49675,119350.0,119340.0,1.81199326]
[1755175290821,0.47399979,119350.0,119340.0,2.33479648]
[1755175291034,1e-08,119350.0,119340.0,2.42301648]
[1755175291250,1.32299881,119360.0,119350.0,0.19257436]
[1755175291464,1.32299881,119360.0,119350.0,6.5639474]
[1755175291670,0.28268902,119360.0,119350.0,6.6402874]
[1755175291882,0.13358998,119360.0,119350.0,7.69357281]
[1755175292116,0.0178761,119370.0,119360.0,0.19256032]
[1755175292345,0.0178761,119370.0,119360.0,5.22851196]
[1755175292559,0.0178761,119370.0,119360.0,5.24993435]
[1755175292781,0.0178761,119370.0,119360.0,3.0641076]
[1755175292998,0.0178761,119370.0,119360.0,3.0891076]
[1755175293209,0.0178761,119370.0,119360.0,2.4560796]
[1755175293433,0.0002,119390.0,119380.0,1.03783662]
[1755175293658,0.0002,119390.0,119380.0,4.37190617]
[1755175293852,0.0002,119390.0,119380.0,4.41517856]
[1755175294265,0.5002,119420.0,119400.0,0.16749311]
[1755175294467,0.5002,119420.0,119410.0,1.5532651]
[1755175294690,0.5002,119420.0,119410.0,1.91050808]
[1755175294827,0.5002,119420.0,119410.0,1.4717866]
[1755175295025,0.5002,119420.0,119410.0,1.41719398]
[1755175295258,0.5002,119420.0,119410.0,1.26635408]
[1755175295467,0.5002,119420.0,119410.0,0.56282225]
[1755175295699,0.5002,119420.0,119410.0,0.60103715]
[1755175295902,0.5002,119420.0,119410.0,0.64088511]
[1755175296107,0.5002,119420.0,119410.0,0.64403511]
[1755175296329,0.5002,119420.0,119410.0,0.39299511]
[1755175296539,0.5002,119420.0,119410.0,0.64088511]
[1755175296749,0.5002,119420.0,119410.0,0.53456325]
[1755175296960,0.50319,119420.0,119410.0,0.87456325]
[1755175297172,0.52819,119420.0,119410.0,0.28352325]
[1755175297372,0.52819,119420.0,119410.0,0.53452325]
[1755175297373,0.64487,119420.0,119410.0,0.53452325]
[1755175298045,0.64487,119420.0,119410.0,0.28352325]
[1755175298260,0.64487,119420.0,119410.0,0.4518]
[1755175298659,0.5002,119420.0,119410.0,0.53452325]
[1755175299045,0.5002,119420.0,119410.0,0.33368325]
[1755175299289,0.5002,119420.0,119410.0,0.40015715]
[1755175299614,0.5002,119420.0,119410.0,0.60091715]
[1755175299815,0.4952,119420.0,119410.0,0.53444325]
[1755175300091,0.4952,119420.0,119410.0,0.60048599]
[1755175300295,0.4952,119420.0,119410.0,0.39972599]
[1755175300491,0.4952,119420.0,119410.0,0.08229209]
[1755175300636,0.4952,119420.0,119410.0,0.33325209]
[1755175301061,0.4952,119420.0,119410.0,0.42114163]
[1755175301294,0.4952,119420.0,119410.0,0.83261356]
[1755175301523,0.4952,119420.0,119410.0,0.48876599]
[1755175301725,0.5104151,119420.0,119410.0,0.51094856]
[1755175302044,0.5104151,119420.0,119410.0,0.42229209]
[1755175302248,0.025,119410.0,119400.0,0.20076]
[1755175302453,0.02799,119410.0,119400.0,0.53444325]
[1755175302884,0.025,119410.0,119400.0,0.55662582]
[1755175303086,0.025,119410.0,119400.0,0.53444325]
[1755175303313,0.025,119410.0,119400.0,0.30566582]
[1755175303513,0.5202,119420.0,119400.0,0.30566582]
[1755175303765,0.5202,119420.0,119410.0,0.33368325]
[1755175304173,0.5202,119420.0,119410.0,0.35586582]
[1755175304995,0.52319,119420.0,119410.0,0.0493]
[1755175305176,0.63987,119420.0,119410.0,0.0493]
[1755175305404,0.80734613,119420.0,119410.0,0.30026]
[1755175305573,0.80734613,119420.0,119410.0,0.0493]
[1755175305776,0.65426649,119420.0,119410.0,0.0493]
[1755175305983,0.65426649,119420.0,119410.0,0.30026]
[1755175306327,0.82174711,119420.0,119410.0,0.30026]
[1755175306535,0.65427098,119420.0,119410.0,0.30026]
[1755175307175,0.63905115,119420.0,119410.0,0.0493]
[1755175307382,0.51938115,119420.0,119410.0,0.38298325]
[1755175307798,0.49438115,119420.0,119410.0,0.38298325]
[1755175307998,0.79438115,119420.0,119410.0,0.38298325]
[1755175308199,0.81938115,119420.0,119410.0,0.38298325]
[1755175309751,0.79438115,119420.0,119410.0,0.38298325]
[1755175310008,0.79438115,119420.0,119410.0,0.44945715]
[1755175310209,0.79438115,119420.0,119410.0,0.47163972]
[1755175310468,0.79438115,119420.0,119410.0,0.44945715]
[1755175310783,0.79438115,119420.0,119410.0,0.47163972]
[1755175310995,0.79438115,119420.0,119410.0,0.49146653]
[1755175311806,0.79438115,119420.0,119410.0,1.01492458]
[1755175312014,0.79438115,119420.0,119410.0,1.01816458]
[1755175312633,0.79438115,119420.0,119410.0,0.46928396]
[1755175312634,0.81938115,119420.0,119410.0,0.46928396]
[1755175312840,0.81938115,119420.0,119410.0,0.40281006]
[1755175313037,0.79438115,119420.0,119410.0,0.40281006]
[1755175313245,0.79438115,119420.0,119410.0,0.47163972]
[1755175313447,0.79438115,119420.0,119410.0,1.01492458]
[1755175314313,0.79312508,119420.0,119410.0,0.49271653]
[1755175314562,0.79312508,119420.0,119410.0,0.9729152]
[1755175314806,0.79312508,119420.0,119410.0,0.38298325]
[1755175315058,0.79312508,119420.0,119410.0,0.44945715]
[1755175315729,0.79312508,119420.0,119410.0,0.9739063]
[1755175315954,0.79312508,119420.0,119410.0,1.0403802]
[1755175316712,0.79312508,119420.0,119410.0,0.47298972]
[1755175316943,0.79312508,119420.0,119410.0,0.99644777]
[1755175317169,0.79312508,119420.0,119410.0,0.9742652]
[1755175317909,0.79312508,119420.0,119410.0,0.24050653]
[1755175318124,0.79312508,119420.0,119410.0,0.49142653]
[1755175318347,0.79312508,119420.0,119410.0,0.74413777]
[1755175318571,0.79312508,119420.0,119410.0,0.92858387]
[1755175318796,0.79312508,119420.0,119410.0,0.9064013]
[1755175318982,0.79312508,119420.0,119410.0,0.99658777]
[1755175319252,0.79312508,119420.0,119410.0,0.81312972]
[1755175319479,0.79312508,119420.0,119410.0,1.35641458]
[1755175319707,0.79312508,119420.0,119410.0,0.83295653]
[1755175319934,0.78847786,119420.0,119410.0,1.10396458]
[1755175320166,0.59299609,119420.0,119410.0,1.33505777]
[1755175320403,0.47286994,119420.0,119410.0,1.3135352]
[1755175320631,0.47286994,119420.0,119410.0,1.35554458]
[1755175320868,0.0252,119460.0,119420.0,0.34]
[1755175321095,0.0002,119460.0,119450.0,0.52345805]
[1755175321317,0.0002,119460.0,119450.0,0.25092]
[1755175321833,0.0002,119460.0,119450.0,0.33364325]
[1755175322488,0.0252,119460.0,119450.0,0.33364325]
[1755175322722,0.0252,119460.0,119450.0,0.35347006]
[1755175322935,0.02819,119460.0,119450.0,0.08272325]
[1755175323148,0.02819,119460.0,119450.0,0.33364325]
[1755175323357,0.0252,119460.0,119450.0,0.33364325]
[1755175323579,0.0002,119460.0,119450.0,0.33364325]
[1755175324079,0.0002,119460.0,119450.0,0.8571013]
[1755175324299,0.0002,119460.0,119450.0,0.33364325]
[1755175324535,0.0002,119460.0,119450.0,1.1971013]
[1755175324996,0.0002,119460.0,119450.0,1.2472713]
[1755175325256,0.0002,119460.0,119450.0,1.41470537]
[1755175325488,0.0002,119460.0,119450.0,2.62555394]
[1755175325715,0.0002,119460.0,119450.0,2.68794643]
[1755175325947,0.0002,119460.0,119450.0,2.75439803]
[1755175326176,0.0002,119460.0,119450.0,2.23093998]
[1755175326407,0.0002,119460.0,119450.0,2.73457122]
[1755175326657,0.0002,119460.0,119450.0,2.19115546]
[1755175326885,0.0002,119460.0,119450.0,1.35624858]
[1755175327108,0.0002,119460.0,119450.0,0.81532485]
[1755175327333,0.0002,119460.0,119450.0,1.3387829]
[1755175327563,0.0002,119460.0,119450.0,0.83789175]
[1755175327821,0.0002,119460.0,119450.0,1.50845697]
[1755175328056,0.996007,119480.0,119470.0,0.86345805]
[1755175328282,0.996007,119480.0,119470.0,1.43401784]
[1755175328517,0.996007,119480.0,119470.0,1.31153761]
[1755175329016,0.996007,119480.0,119470.0,1.2917108]
[1755175329224,0.996007,119480.0,119470.0,1.43401784]
[1755175329471,0.996007,119480.0,119470.0,0.76825175]
[1755175329693,0.996007,119480.0,119470.0,1.45911584]
[1755175329904,0.996007,119480.0,119470.0,0.9554846]
[1755175330111,0.996007,119480.0,119470.0,1.47894265]
[1755175330918,0.996007,119480.0,119470.0,1.78036965]
[1755175331121,0.996007,119480.0,119470.0,1.2803485]
[1755175331323,0.996007,119480.0,119470.0,1.78036965]
[1755175331535,0.996007,119480.0,119470.0,1.45911584]
[1755175331706,0.996007,119480.0,119470.0,1.62139384]
[1755175331919,0.996007,119480.0,119470.0,1.64122065]
[1755175332122,0.996007,119480.0,119470.0,1.62139384]
[1755175332323,0.996007,119480.0,119470.0,1.1177626]
[1755175332679,0.996007,119480.0,119470.0,1.64122065]
[1755175332903,0.996007,119480.0,119470.0,1.66465755]
[1755175333547,0.996007,119480.0,119470.0,1.7081649]
[1755175333759,0.996007,119480.0,119470.0,1.7574649]
[1755175333963,0.996007,119480.0,119470.0,1.23400685]
[1755175334210,0.96050667,119480.0,119470.0,1.21056995]
[1755175334421,0.95925123,119480.0,119470.0,1.75390186]
[1755175334840,0.95925123,119480.0,119470.0,1.71420119]
[1755175335047,0.95925123,119480.0,119470.0,1.7325682]
[1755175335258,0.95925123,119480.0,119470.0,1.71420119]
[1755175335496,0.95925123,119480.0,119470.0,1.7325682]
[1755175336331,0.95925123,119480.0,119470.0,1.20911015]
[1755175336551,0.95925123,119480.0,119470.0,0.95823015]
[1755175336788,0.95925123,119480.0,119470.0,1.67057384]
[1755175337016,0.95925123,119480.0,119470.0,1.69557384]
[1755175337227,0.95925123,119480.0,119470.0,1.16727686]
[1755175337460,0.95925123,119480.0,119470.0,1.69044085]
[1755175337700,0.95925123,119480.0,119470.0,1.69557384]
[1755175337945,0.95925123,119480.0,119470.0,1.69044085]
[1755175338180,0.95925123,119480.0,119470.0,1.65624685]
[1755175338389,0.95925123,119480.0,119470.0,1.63124685]
[1755175338596,0.95925123,119480.0,119470.0,1.65624685]
[1755175338807,0.95925123,119480.0,119470.0,1.63124685]
[1755175339013,0.95925123,119480.0,119470.0,1.1327888]
[1755175339245,0.95925123,119480.0,119470.0,1.1077888]
[1755175339477,0.95925123,119480.0,119470.0,1.1327888]
[1755175339707,0.95925123,119480.0,119470.0,1.63637984]
[1755175339932,0.95925123,119480.0,119470.0,1.61137984]
[1755175340402,0.95925123,119480.0,119470.0,1.21308081]
[1755175340698,0.95925123,119480.0,119470.0,1.60826984]
[1755175340925,0.95925123,119480.0,119470.0,1.63326984]
[1755175341171,0.95925123,119480.0,119470.0,1.60826984]
[1755175341662,0.95925123,119480.0,119470.0,1.10981179]
[1755175341946,0.95925123,119480.0,119470.0,1.4658638]
[1755175342187,0.95925123,119480.0,119470.0,1.60826984]
[1755175342427,0.95925123,119480.0,119470.0,1.4408638]
[1755175342671,0.95925123,119480.0,119470.0,1.4543838]
[1755175342916,0.95925123,119480.0,119470.0,1.62178984]
[1755175343160,0.95925123,119480.0,119470.0,1.09833179]
[1755175343431,0.95925123,119480.0,119470.0,1.4543838]
[1755175343672,0.95925123,119480.0,119470.0,0.47428175]
[1755175343673,0.96242123,119480.0,119470.0,0.47428175]
[1755175343917,0.95925123,119480.0,119470.0,0.81428175]
[1755175344164,0.96242123,119480.0,119470.0,1.3377398]
[1755175344645,0.95925123,119480.0,119470.0,1.3377398]
[1755175344873,0.95925123,119480.0,119470.0,1.50514584]
[1755175345099,0.95925123,119480.0,119470.0,1.72254784]
[1755175345334,0.95925123,119480.0,119470.0,1.39803184]
[1755175345577,0.95925123,119480.0,119470.0,1.86917885]
[1755175345819,0.95925123,119480.0,119470.0,1.30085379]
[1755175346043,0.95925123,119480.0,119470.0,1.32585379]
[1755175346267,0.95925123,119480.0,119470.0,1.84931184]
[1755175346732,0.95925123,119480.0,119470.0,1.82431184]
[1755175346965,0.95925123,119480.0,119470.0,1.30085379]
[1755175347201,0.95925123,119480.0,119470.0,0.88014775]
[1755175347440,0.95925123,119480.0,119470.0,1.13086775]
[1755175347682,0.95925123,119480.0,119470.0,1.86669284]
[1755175348176,0.95925123,119480.0,119470.0,1.86913284]
[1755175348443,0.95925123,119480.0,119470.0,1.86849284]
[1755175348903,0.95925123,119480.0,119470.0,1.6986468]
[1755175349133,0.95925123,119480.0,119470.0,0.42348175]
[1755175349367,0.95925123,119480.0,119470.0,1.1976598]
[1755175349597,0.96242123,119480.0,119470.0,1.1976598]
[1755175349827,0.96242123,119480.0,119470.0,0.67420175]
[1755175350059,0.96242123,119480.0,119470.0,1.5376598]
[1755175350314,0.96242123,119480.0,119470.0,1.01420175]
[1755175350315,0.95925123,119480.0,119470.0,1.01420175]
[1755175350563,0.98742123,119480.0,119470.0,1.4712193]
[1755175350817,1.10408123,119480.0,119470.0,0.23204125]
[1755175351056,0.025,119460.0,119430.0,0.79048075]
[1755175351271,0.025,119460.0,119450.0,0.025107]
[1755175351501,0.025,119460.0,119450.0,0.63232369]
[1755175351727,0.025,119460.0,119450.0,0.10783025]
[1755175351960,0.02817,119460.0,119450.0,0.63232369]
[1755175352211,0.00317,119460.0,119450.0,0.6312883]
[1755175352451,0.00317,119460.0,119450.0,1.0377399]
[1755175352687,0.98742123,119480.0,119450.0,1.0377399]
[1755175352928,0.98742123,119480.0,119470.0,0.52345805]
[1755175353160,0.98742123,119480.0,119470.0,0.9233818]
[1755175353631,0.98742123,119480.0,119470.0,1.36434734]
[1755175353862,0.98742123,119480.0,119470.0,0.73992375]
[1755175354344,0.98616579,119480.0,119470.0,0.67348325]
[1755175356025,0.98299579,119480.0,119470.0,1.1969413]
[1755175356236,0.98299579,119480.0,119470.0,0.67348325]
[1755175356439,0.98299579,119480.0,119470.0,1.43078784]
[1755175356440,0.95799579,119480.0,119470.0,1.43078784]
[1755175356647,0.95799579,119480.0,119470.0,1.75144984]
[1755175356860,0.95799579,119480.0,119470.0,1.62213284]
[1755175357526,0.96199579,119480.0,119470.0,1.55569234]
[1755175357734,0.96199579,119480.0,119470.0,1.57462045]
[1755175357941,0.95799579,119480.0,119470.0,1.59962045]
[1755175358149,0.95799579,119480.0,119470.0,1.66606095]
[1755175358400,0.57102036,119480.0,119470.0,1.62158698]
[1755175358611,0.57102036,119480.0,119470.0,2.80527748]
[1755175358612,0.41193193,119480.0,119470.0,2.80527748]
[1755175358820,0.40357363,119480.0,119470.0,2.78331095]
[1755175359025,0.40157363,119480.0,119470.0,2.64713284]
[1755175359228,0.40157363,119480.0,119470.0,1.64713284]
[1755175359671,0.40157363,119480.0,119470.0,0.87291479]
[1755175359672,0.18469021,119480.0,119470.0,0.87291479]
[1755175359903,0.18469021,119480.0,119470.0,1.64713284]
[1755175360317,0.18469021,119480.0,119470.0,1.66606095]
[1755175360528,0.18469021,119480.0,119470.0,1.68592796]
[1755175360737,0.17633447,119480.0,119470.0,1.68556398]
[1755175360964,0.17633447,119480.0,119470.0,1.66699985]
[1755175361184,0.16797873,119480.0,119470.0,1.68556398]
[1755175361606,0.15962299,119480.0,119470.0,2.80281398]
[1755175361818,0.15962299,119480.0,119470.0,2.27935593]
[1755175361819,0.15437399,119480.0,119470.0,2.27935593]
[1755175362028,0.11677315,119480.0,119470.0,2.73637348]
[1755175362250,0.11178515,119480.0,119470.0,2.21291543]
[1755175362478,0.10342941,119480.0,119470.0,2.73737348]
[1755175362708,0.09507367,119480.0,119470.0,2.80381398]
[1755175362917,0.06582857,119480.0,119470.0,2.82881398]
[1755175363121,0.04454383,119480.0,119470.0,2.82881398]
[1755175363332,0.04454383,119480.0,119470.0,2.77881398]
[1755175363555,0.03618809,119480.0,119470.0,2.80894697]
[1755175363807,0.03618809,119480.0,119470.0,2.69069697]
[1755175364040,0.02783235,119480.0,119470.0,2.66669697]
[1755175364268,0.01947661,119480.0,119470.0,2.14323892]
[1755175364494,0.01947661,119480.0,119470.0,1.39737284]
[1755175364717,0.0178761,119490.0,119480.0,0.50739203]
[1755175364908,0.0178761,119490.0,119480.0,1.31841003]
[1755175365198,0.0178761,119490.0,119480.0,1.60943905]
[1755175365441,0.0178761,119490.0,119480.0,0.9086083]
[1755175365675,0.0210161,119490.0,119480.0,1.1592883]
[1755175365923,0.0178761,119490.0,119480.0,1.1592883]
[1755175366171,0.0178761,119490.0,119480.0,1.66968033]
[1755175366385,0.0178761,119490.0,119480.0,1.69468033]
[1755175366846,0.0178761,119490.0,119480.0,1.2486083]
[1755175367075,0.0178761,119490.0,119480.0,1.4779793]
[1755175367305,0.0178761,119490.0,119480.0,1.2272993]
[1755175367573,0.0178761,119490.0,119480.0,1.88328183]
[1755175367798,0.0198761,119490.0,119480.0,1.88328183]
[1755175368011,0.0228761,119490.0,119480.0,1.88628183]
[1755175368238,0.0178761,119490.0,119480.0,1.91128183]
[1755175368656,0.0258761,119490.0,119480.0,1.93637183]
[1755175368862,0.0258761,119490.0,119480.0,1.41291378]
[1755175369081,0.0258761,119490.0,119480.0,1.93637183]
[1755175369294,0.0258761,119490.0,119480.0,1.37552328]
[1755175369509,0.0258761,119490.0,119480.0,1.89898133]
[1755175369721,0.0258761,119490.0,119480.0,1.89598133]
[1755175369936,0.0218761,119490.0,119480.0,1.89598133]
[1755175370137,0.0248761,119490.0,119480.0,1.89598133]
[1755175370341,0.0248761,119490.0,119480.0,1.37552328]
[1755175370559,0.0208761,119490.0,119480.0,1.87398133]
[1755175370973,0.0228761,119490.0,119480.0,1.89898133]
[1755175371382,0.0228761,119490.0,119480.0,1.87398133]
[1755175371620,0.0228761,119490.0,119480.0,1.89898133]
[1755175372285,0.0228761,119490.0,119480.0,1.37552328]
[1755175372517,0.0228761,119490.0,119480.0,1.89598133]
[1755175372983,0.0228761,119490.0,119480.0,1.87098133]
[1755175373211,0.0228761,119490.0,119480.0,1.89598133]
[1755175374356,0.02162077,119490.0,119480.0,1.89598133]
[1755175374789,0.02162077,119490.0,119480.0,1.87098133]
[1755175375009,0.02162077,119490.0,119480.0,1.89598133]
[1755175375229,0.02162077,119490.0,119480.0,1.37552328]
[1755175375463,0.02162077,119490.0,119480.0,1.89898133]
[1755175377016,0.02162077,119490.0,119480.0,1.37552328]
[1755175377236,0.02162077,119490.0,119480.0,1.89898133]
[1755175377473,0.02162077,119490.0,119480.0,1.92305526]
[1755175377692,0.02162077,119490.0,119480.0,1.89805526]
[1755175377910,0.02162077,119490.0,119480.0,1.9431206]
[1755175378359,0.01962077,119490.0,119480.0,1.9431206]
[1755175378812,0.02062077,119490.0,119480.0,1.98840701]
[1755175379034,0.02062077,119490.0,119480.0,1.98289721]
[1755175379272,0.02062077,119490.0,119480.0,1.98840701]
[1755175379485,0.01762077,119490.0,119480.0,1.46603211]
[1755175379701,0.01762077,119490.0,119480.0,2.85215481]
[1755175380165,0.01762077,119490.0,119480.0,2.84715481]
[1755175380380,0.01762077,119490.0,119480.0,2.84679481]
[1755175380608,0.01862077,119490.0,119480.0,2.84679481]
[1755175380859,0.00826522,119490.0,119480.0,2.84679481]
[1755175381089,0.00826522,119490.0,119480.0,2.78035991]
[1755175381325,0.03207,119500.0,119490.0,0.53237802]
[1755175381560,0.03207,119500.0,119490.0,6.25110397]
[1755175381748,0.5,119510.0,119500.0,0.94496064]
[1755175382006,0.5,119510.0,119500.0,6.61572259]
[1755175382225,0.5,119510.0,119500.0,7.61872259]
[1755175382444,0.5,119510.0,119500.0,7.68514639]
[1755175382908,0.5,119510.0,119500.0,7.23019989]
[1755175383142,0.5,119510.0,119500.0,7.29662369]
[1755175383368,0.5,119510.0,119500.0,7.23019989]